bitfinex/quotes_BTCUSD_20240803
["timestamp","ask_amount","ask_price","bid_price","bid_amount"]
[1722709339201,0.002,60569.0,60568.0,2.02696107]
[1722709339380,0.002,60569.0,60568.0,2.02496107]
[1722709339625,0.002,60569.0,60568.0,2.00496107]
[1722709339835,0.002,60569.0,60568.0,2.02496107]
[1722709340040,0.002,60569.0,60568.0,2.02696107]
[1722709340252,0.002,60569.0,60568.0,2.04996107]
[1722709340474,0.002,60569.0,60568.0,2.11855396]
[1722709340705,0.002,60569.0,60568.0,2.44876096]
[1722709340910,0.002,60569.0,60568.0,2.44276096]
[1722709341117,0.001,60569.0,60568.0,2.44276096]
[1722709341326,0.002,60569.0,60568.0,2.45676096]
[1722709341528,0.002,60569.0,60568.0,3.9034317]
[1722709341963,0.002,60569.0,60568.0,3.9014317]
[1722709342146,0.001,60569.0,60568.0,3.39941211]
[1722709342376,0.001,60569.0,60568.0,3.40141211]
[1722709342589,0.002,60569.0,60568.0,3.2918199]
[1722709342792,0.002,60569.0,60568.0,3.410549]
[1722709342981,0.002,60569.0,60568.0,3.3138199]
[1722709343416,0.002,60569.0,60568.0,3.38241039]
[1722709343597,0.002,60569.0,60568.0,3.5058105]
[1722709343733,0.002,60569.0,60568.0,3.3824119]
[1722709343928,0.002,60569.0,60568.0,3.3804119]
[1722709344230,0.002,60569.0,60568.0,3.40341085]
[1722709344433,0.002,60569.0,60568.0,3.73561785]
[1722709344715,0.47251164,60592.0,60591.0,0.825205]
[1722709344917,0.47251164,60592.0,60591.0,0.98266424]
[1722709345129,0.0696,60602.0,60598.0,0.495064]
[1722709345333,0.0696,60602.0,60598.0,0.65252324]
[1722709345334,0.00083,60599.0,60598.0,0.65252324]
[1722709345615,0.00083,60599.0,60598.0,1.32035495]
[1722709346386,0.00083,60599.0,60598.0,1.32135495]
[1722709346596,0.00483,60599.0,60598.0,1.32135495]
[1722709347354,0.00483,60599.0,60598.0,0.99131195]
[1722709347608,0.00083,60599.0,60598.0,0.66026895]
[1722709347944,0.00083,60599.0,60598.0,0.67126895]
[1722709348155,0.00083,60599.0,60598.0,0.66026895]
[1722709348569,0.00083,60599.0,60598.0,0.01174571]
[1722709348570,0.07043,60599.0,60598.0,0.01174571]
[1722709348802,0.07043,60599.0,60598.0,0.50680971]
[1722709348981,0.07043,60599.0,60598.0,0.01174571]
[1722709348982,0.565487,60599.0,60598.0,0.01174571]
[1722709349107,0.566487,60599.0,60598.0,0.02374571]
[1722709349304,0.236449,60599.0,60598.0,0.016]
[1722709349508,0.236449,60599.0,60598.0,0.02374571]
[1722709349714,0.235449,60599.0,60598.0,0.004]
[1722709349915,0.07043,60599.0,60598.0,0.004]
[1722709350123,0.07043,60599.0,60598.0,0.01674571]
[1722709350928,0.00083,60599.0,60598.0,0.66926895]
[1722709351131,0.00083,60599.0,60598.0,0.504064]
[1722709351308,0.00083,60599.0,60598.0,0.51180971]
[1722709351526,0.00083,60599.0,60598.0,0.01674571]
[1722709352982,0.165849,60599.0,60598.0,0.01674571]
[1722709353416,0.00083,60599.0,60598.0,0.01674571]
[1722709353621,0.165849,60599.0,60598.0,0.01674571]
[1722709353835,0.165849,60599.0,60598.0,0.18176671]
[1722709353836,0.00083,60599.0,60598.0,0.18176671]
[1722709354039,0.00083,60599.0,60598.0,0.51180971]
[1722709354239,0.00083,60599.0,60598.0,0.84185271]
[1722709354776,0.00083,60599.0,60598.0,0.51180971]
[1722709356528,0.00083,60599.0,60598.0,0.18176671]
[1722709356740,0.00083,60599.0,60598.0,0.51180971]
[1722709357347,0.00083,60599.0,60598.0,0.01674571]
[1722709357754,0.165849,60599.0,60598.0,0.01674571]
[1722709358016,0.00083,60599.0,60598.0,0.18176671]
[1722709358218,0.00083,60599.0,60598.0,0.01674571]
[1722709358354,0.00083,60599.0,60598.0,0.18176671]
[1722709359561,0.00083,60599.0,60598.0,0.99931195]
[1722709359775,0.00083,60599.0,60598.0,1.32935495]
[1722709365304,0.00083,60599.0,60598.0,0.99931195]
[1722709365645,0.08983,60599.0,60598.0,0.17420495]
[1722709365850,0.254849,60599.0,60598.0,0.17420495]
[1722709366332,0.914925,60599.0,60598.0,0.01674571]
[1722709366773,0.914925,60599.0,60598.0,0.009]
[1722709366774,1.244963,60599.0,60598.0,0.009]
[1722709366995,1.43629102,60599.0,60598.0,0.009]
[1722709367416,1.418863,60599.0,60598.0,0.009]
[1722709367655,1.43394799,60599.0,60598.0,0.009]
[1722709367843,1.43394799,60599.0,60598.0,0.005]
[1722709368074,0.089,60589.0,60581.0,1.2571]
[1722709368337,0.165057,60585.0,60582.0,0.15745924]
[1722709368516,0.165057,60585.0,60582.0,0.16526521]
[1722709369276,0.165057,60585.0,60582.0,0.33033021]
[1722709370216,0.165057,60585.0,60582.0,0.16526521]
[1722709370417,0.165057,60585.0,60582.0,0.33033021]
[1722709370566,0.0739,60586.0,60582.0,0.33033021]
[1722709370772,0.0739,60586.0,60584.0,0.165059]
[1722709371000,0.0739,60586.0,60585.0,0.00779467]
[1722709371227,0.0739,60586.0,60585.0,0.17285167]
[1722709371387,0.089,60589.0,60588.0,0.165049]
[1722709371586,0.089,60589.0,60588.0,0.00778337]
[1722709372012,0.089,60589.0,60587.0,0.165051]
[1722709372236,0.089,60589.0,60588.0,0.165049]
[1722709372468,0.403968,60594.0,60589.0,0.330092]
[1722709372469,0.1629,60594.0,60589.0,0.330092]
[1722709372678,0.1629,60594.0,60588.0,0.00778337]
[1722709372679,0.1629,60594.0,60590.0,0.330087]
[1722709372888,0.1629,60594.0,60591.0,0.160039]
[1722709373097,0.089,60594.0,60593.0,0.165035]
[1722709373530,0.089,60594.0,60593.0,0.00776454]
[1722709373738,0.089,60594.0,60593.0,0.17279954]
[1722709373947,0.089,60594.0,60593.0,0.165035]
[1722709374152,0.089,60594.0,60593.0,0.17279954]
[1722709374382,0.00083,60599.0,60593.0,0.16522378]
[1722709374587,0.00083,60599.0,60598.0,0.495064]
[1722709375006,0.00083,60599.0,60598.0,0.83285271]
[1722709375212,0.00083,60599.0,60598.0,0.99031195]
[1722709376075,0.00183,60599.0,60598.0,0.99031195]
[1722709376663,0.00183,60599.0,60598.0,1.38709527]
[1722709377521,0.00083,60599.0,60598.0,1.38709527]
[1722709377724,0.00183,60599.0,60598.0,1.40117523]
[1722709378315,0.00083,60599.0,60598.0,1.38717523]
[1722709378552,0.00083,60599.0,60598.0,1.41317523]
[1722709378553,0.00183,60599.0,60598.0,1.41317523]
[1722709378754,0.00183,60599.0,60598.0,1.01631195]
[1722709378957,0.00183,60599.0,60598.0,0.99031195]
[1722709378958,0.00083,60599.0,60598.0,0.99031195]
[1722709379108,0.00083,60599.0,60598.0,1.33135495]
[1722709379313,0.00183,60599.0,60598.0,1.33835495]
[1722709379490,0.00183,60599.0,60598.0,1.00831195]
[1722709379692,0.00183,60599.0,60598.0,0.68426895]
[1722709379972,0.00183,60599.0,60598.0,0.99731195]
[1722709380149,0.00183,60599.0,60598.0,1.32735495]
[1722709380350,0.00183,60599.0,60598.0,1.39446456]
[1722709380553,0.00183,60599.0,60598.0,1.38746456]
[1722709380554,0.00083,60599.0,60598.0,1.38746456]
[1722709380890,0.00083,60599.0,60598.0,1.3944623]
[1722709380891,0.00183,60599.0,60598.0,1.3944623]
[1722709381087,0.00183,60599.0,60598.0,1.32735495]
[1722709381297,0.00183,60599.0,60598.0,1.33135495]
[1722709381298,0.00083,60599.0,60598.0,1.33135495]
[1722709381693,0.00183,60599.0,60598.0,1.32735495]
[1722709381976,0.00183,60599.0,60598.0,1.34135495]
[1722709382181,0.00083,60599.0,60598.0,0.99031195]
[1722709382352,0.00083,60599.0,60598.0,0.66026895]
[1722709382556,0.00183,60599.0,60598.0,0.67526895]
[1722709382758,0.00183,60599.0,60598.0,0.33822595]
[1722709383137,0.00183,60599.0,60598.0,0.34522595]
[1722709383409,0.00183,60599.0,60598.0,1.00531195]
[1722709383936,0.00083,60599.0,60598.0,0.99731195]
[1722709384110,0.00183,60599.0,60598.0,1.00531195]
[1722709384472,0.00183,60599.0,60598.0,1.40735495]
[1722709384677,0.00083,60599.0,60598.0,1.46655016]
[1722709385058,0.00083,60599.0,60598.0,1.45955016]
[1722709385437,0.00083,60599.0,60598.0,1.46655016]
[1722709385438,0.00183,60599.0,60598.0,1.46655016]
[1722709386014,0.00183,60599.0,60598.0,1.47055016]
[1722709386602,0.00183,60599.0,60598.0,1.46655016]
[1722709386815,0.00183,60599.0,60598.0,1.79659316]
[1722709387014,0.00183,60599.0,60598.0,2.49255222]
[1722709387015,0.00083,60599.0,60598.0,2.49255222]
[1722709387177,0.01023,60619.0,60617.0,0.82485]
[1722709387380,0.01023,60619.0,60617.0,0.98230924]
[1722709387578,0.01023,60619.0,60617.0,0.98998344]
[1722709388922,0.00383,60618.0,60617.0,0.66004344]
[1722709389128,0.00383,60618.0,60617.0,0.0076742]
[1722709389344,0.168797,60618.0,60617.0,0.0076742]
[1722709389632,0.168797,60618.0,60613.0,0.16498]
[1722709389633,0.164972,60617.0,60613.0,0.16498]
[1722709389839,0.087,60616.0,60615.0,0.164975]
[1722709390041,0.087,60616.0,60615.0,0.494926]
[1722709390241,0.087,60616.0,60615.0,0.824877]
[1722709390442,0.087,60616.0,60615.0,0.65238524]
[1722709391052,0.00083,60618.0,60617.0,0.32994]
[1722709391291,0.00083,60618.0,60617.0,0.65236924]
[1722709391627,0.00083,60618.0,60617.0,0.98230924]
[1722709392108,0.00083,60618.0,60617.0,0.65236924]
[1722709392326,0.164974,60616.0,60610.0,0.329974]
[1722709392517,0.164995,60608.0,60599.0,0.330035]
[1722709392628,0.087,60602.0,60600.0,0.15745924]
[1722709393087,0.165013,60601.0,60600.0,0.15745924]
[1722709393488,0.0724,60601.0,60582.0,0.5395]
[1722709393688,0.33006,60595.0,60590.0,0.165043]
[1722709393888,0.33006,60595.0,60591.0,0.15745924]
[1722709394094,0.0724,60601.0,60591.0,0.15745924]
[1722709394291,0.825082,60600.0,60599.0,0.007]
[1722709394748,0.495049,60600.0,60599.0,0.007]
[1722709395582,0.165025,60597.0,60593.0,0.165035]
[1722709395967,0.165023,60598.0,60594.0,0.17279277]
[1722709396561,0.002,60600.0,60599.0,0.165019]
[1722709396776,0.002,60600.0,60599.0,0.98255424]
[1722709396974,0.002,60600.0,60599.0,0.99029619]
[1722709397431,0.005,60600.0,60599.0,0.33022019]
[1722709397641,0.170016,60600.0,60599.0,0.00774195]
[1722709397848,0.087,60600.0,60599.0,0.00774195]
[1722709398062,0.087,60600.0,60599.0,0.002]
[1722709398256,0.087,60600.0,60599.0,0.00974195]
[1722709398648,0.087,60600.0,60599.0,0.17276095]
[1722709398863,0.09723991,60608.0,60607.0,0.164997]
[1722709399202,0.087,60614.0,60610.0,0.329977]
[1722709399314,0.087,60614.0,60613.0,0.164981]
[1722709399513,0.087,60614.0,60613.0,0.494943]
[1722709399764,0.087,60614.0,60613.0,0.50263225]
[1722709399963,0.087,60614.0,60613.0,0.17267025]
[1722709400767,0.087,60614.0,60613.0,0.50263225]
[1722709401352,0.00083,60618.0,60613.0,0.50263225]
[1722709401353,0.00083,60618.0,60617.0,0.16497]
[1722709401640,0.00083,60618.0,60617.0,0.82485]
[1722709401845,0.00083,60618.0,60617.0,0.8325242]
[1722709401989,0.00083,60618.0,60617.0,0.98998344]
[1722709402806,0.00083,60618.0,60617.0,1.31992344]
[1722709403010,0.00083,60618.0,60617.0,0.99098344]
[1722709403575,0.00083,60618.0,60617.0,0.99198344]
[1722709403973,0.00083,60618.0,60617.0,1.32192344]
[1722709405573,0.00083,60618.0,60617.0,1.82136344]
[1722709405774,0.00083,60618.0,60617.0,2.03189958]
[1722709406108,0.00083,60618.0,60617.0,2.17454316]
[1722709406367,0.00083,60618.0,60617.0,2.35982793]
[1722709406546,0.00083,60618.0,60617.0,2.39292793]
[1722709406745,0.00183,60618.0,60617.0,2.46704529]
[1722709407099,0.00083,60618.0,60617.0,2.48104529]
[1722709407298,0.00083,60618.0,60617.0,2.03231065]
[1722709407508,0.00083,60618.0,60617.0,2.04631065]
[1722709407732,0.00083,60618.0,60617.0,2.06631065]
[1722709407941,0.00083,60618.0,60617.0,2.05231065]
[1722709408464,0.00083,60618.0,60617.0,2.06631065]
[1722709408707,0.00083,60618.0,60617.0,2.08031065]
[1722709409132,0.01023,60636.0,60630.0,0.164934]
[1722709409289,0.01023,60636.0,60633.0,0.494779]
[1722709409495,0.01023,60636.0,60633.0,1.80851866]
[1722709409703,0.01023,60636.0,60633.0,2.17898567]
[1722709410050,0.01023,60636.0,60633.0,1.88872821]
[1722709410252,0.01023,60636.0,60633.0,1.41955825]
[1722709410368,0.01023,60636.0,60633.0,1.45155825]
[1722709410575,0.01023,60636.0,60633.0,1.46355825]
[1722709411010,0.01023,60636.0,60633.0,1.51315379]
[1722709411212,0.01023,60636.0,60633.0,1.87300679]
[1722709411424,0.01023,60636.0,60633.0,1.82541125]
[1722709411633,0.01023,60636.0,60633.0,1.80341125]
[1722709412511,0.01023,60636.0,60633.0,1.78441125]
[1722709412719,0.01023,60636.0,60633.0,1.80741125]
[1722709412938,0.01023,60636.0,60633.0,3.10261125]
[1722709413141,0.01023,60636.0,60635.0,1.186447]
[1722709413350,0.01023,60636.0,60635.0,1.51198314]
[1722709413558,0.01023,60636.0,60635.0,1.82352466]
[1722709414013,0.01023,60636.0,60635.0,1.77392912]
[1722709414350,0.01023,60636.0,60635.0,1.43008712]
[1722709414564,0.01023,60636.0,60635.0,1.42851273]
[1722709414943,0.01023,60636.0,60635.0,1.75835473]
[1722709415128,0.01023,60636.0,60635.0,1.76835473]
[1722709415245,0.01023,60636.0,60635.0,1.43851273]
[1722709415451,0.01023,60636.0,60635.0,1.42851273]
[1722709415674,0.01023,60636.0,60635.0,1.45408712]
[1722709415872,0.01023,60636.0,60635.0,1.45251273]
[1722709416085,0.01023,60636.0,60635.0,1.53283906]
[1722709416322,0.01023,60636.0,60635.0,1.46651273]
[1722709416725,0.01023,60636.0,60635.0,1.48051273]
[1722709417141,0.01023,60636.0,60635.0,1.46808712]
[1722709417558,0.01023,60636.0,60635.0,1.81035473]
[1722709417763,0.01023,60636.0,60635.0,1.52551273]
[1722709418436,0.01023,60636.0,60635.0,1.52708712]
[1722709418610,0.01023,60636.0,60635.0,1.52551273]
[1722709419389,0.01023,60636.0,60635.0,1.93675473]
[1722709419947,0.01023,60636.0,60635.0,1.60691273]
[1722709420552,0.01023,60636.0,60635.0,1.50251273]
[1722709421802,0.01023,60636.0,60635.0,1.47851273]
[1722709422147,0.01023,60636.0,60635.0,1.49251273]
[1722709422323,0.01023,60636.0,60635.0,1.46451273]
[1722709422546,0.01023,60636.0,60635.0,1.47851273]
[1722709422751,0.01023,60636.0,60635.0,1.49251273]
[1722709423107,0.01023,60636.0,60635.0,1.47851273]
[1722709423313,0.01023,60636.0,60635.0,1.49251273]
[1722709426658,0.01023,60636.0,60635.0,1.51551273]
[1722709427018,0.01023,60636.0,60635.0,1.49251273]
[1722709427232,0.08613,60636.0,60635.0,0.19306573]
[1722709427483,0.08613,60636.0,60635.0,0.35798673]
[1722709427999,0.08613,60636.0,60635.0,0.19306573]
[1722709428132,0.08613,60636.0,60635.0,0.17906573]
[1722709428340,0.999522,60636.0,60635.0,0.03060649]
[1722709428538,1.329359,60636.0,60635.0,0.03060649]
[1722709428780,1.329359,60636.0,60635.0,0.009]
[1722709429222,1.669196,60636.0,60635.0,0.01]
[1722709429418,0.1562,60622.0,60620.0,0.066063]
[1722709429627,0.1562,60622.0,60621.0,0.16511839]
[1722709429827,0.1562,60622.0,60621.0,0.33007739]
[1722709430400,0.1562,60622.0,60621.0,0.16511839]
[1722709430619,0.980982,60622.0,60621.0,0.16511839]
[1722709430796,1.310895,60622.0,60621.0,0.00765915]
[1722709431147,1.310895,60622.0,60608.0,0.329989]
[1722709431148,0.164978,60614.0,60608.0,0.329989]
[1722709431358,0.164978,60614.0,60605.0,0.34051701]
[1722709431359,0.164981,60613.0,60609.0,0.15745924]
[1722709431561,0.329957,60614.0,60609.0,0.16516354]
[1722709431767,0.1986,60626.0,60609.0,0.16516354]
[1722709431768,0.164989,60610.0,60609.0,0.0077043]
[1722709431966,0.0863,60612.0,60609.0,0.0077043]
[1722709432164,0.0863,60612.0,60604.0,0.797511]
[1722709432366,0.251284,60612.0,60610.0,0.00770054]
[1722709432571,0.0863,60612.0,60608.0,0.164993]
[1722709432822,0.0863,60612.0,60611.0,0.00769678]
[1722709432992,0.0863,60612.0,60611.0,0.15745924]
[1722709433169,0.0863,60612.0,60611.0,0.16515602]
[1722709433577,0.486125,60620.0,60611.0,0.49512902]
[1722709433784,0.32993,60619.0,60612.0,0.15745924]
[1722709433986,0.164966,60619.0,60614.0,0.164977]
[1722709434187,0.164966,60619.0,60615.0,0.32243424]
[1722709434443,0.1562,60620.0,60616.0,0.164971]
[1722709434647,0.321162,60620.0,60615.0,0.33011596]
[1722709434853,0.321162,60620.0,60617.0,0.0076742]
[1722709435061,0.164965,60619.0,60615.0,0.15745924]
[1722709435300,0.164965,60619.0,60616.0,0.00767796]
[1722709435708,0.164965,60619.0,60615.0,0.32243424]
[1722709435913,0.321162,60620.0,60617.0,0.16513344]
[1722709436134,0.321162,60620.0,60617.0,0.15745924]
[1722709436337,0.321162,60620.0,60618.0,0.00767043]
[1722709436751,0.1562,60620.0,60619.0,0.15745924]
[1722709436959,0.1562,60620.0,60619.0,0.65235224]
[1722709437110,0.1562,60620.0,60619.0,0.98994791]
[1722709437329,0.0863,60620.0,60619.0,0.98994791]
[1722709437664,0.0863,60620.0,60619.0,0.33008991]
[1722709437865,0.251262,60620.0,60619.0,0.16512591]
[1722709438368,0.0863,60620.0,60619.0,0.33008991]
[1722709438600,0.3399185,60627.0,60619.0,0.23982591]
[1722709438601,0.0100325,60627.0,60619.0,0.23982591]
[1722709438826,0.0863,60634.0,60619.0,0.23982591]
[1722709438827,0.0863,60634.0,60625.0,0.07875194]
[1722709438998,0.0863,60634.0,60623.0,0.15745924]
[1722709438999,0.164927,60633.0,60628.0,0.164939]
[1722709439198,0.0863,60634.0,60629.0,0.32239524]
[1722709439394,0.251225,60634.0,60629.0,0.33002429]
[1722709439611,0.329853,60633.0,60629.0,0.00762905]
[1722709439809,0.0863,60634.0,60630.0,0.15745924]
[1722709440020,0.0863,60634.0,60631.0,0.164931]
[1722709440228,0.0863,60634.0,60631.0,0.17255253]
[1722709440432,0.0863,60634.0,60631.0,0.00762153]
[1722709440631,0.0863,60634.0,60633.0,0.494779]
[1722709440931,0.0863,60634.0,60633.0,0.32999925]
[1722709441667,0.01023,60636.0,60635.0,0.494763]
[1722709441875,0.01023,60636.0,60635.0,1.31190624]
[1722709442077,0.01023,60636.0,60635.0,1.64174824]
[1722709442283,0.01023,60636.0,60635.0,1.77235473]
[1722709443076,0.01023,60636.0,60635.0,1.77335473]
[1722709444307,0.01023,60636.0,60635.0,1.77235473]
[1722709444517,0.01023,60636.0,60635.0,1.78635473]
[1722709445251,0.01023,60636.0,60635.0,1.77235473]
[1722709445440,0.01023,60636.0,60635.0,1.80035473]
[1722709446377,0.01023,60636.0,60635.0,0.78782873]
[1722709446598,0.01023,60636.0,60635.0,1.11767073]
[1722709447377,0.01023,60636.0,60635.0,1.08967073]
[1722709447581,0.01023,60636.0,60635.0,1.41951273]
[1722709447783,0.01023,60636.0,60635.0,1.44751273]
[1722709447986,0.01023,60636.0,60635.0,1.45651273]
[1722709448185,0.01023,60636.0,60635.0,1.44251273]
[1722709448436,0.01023,60636.0,60635.0,1.45651273]
[1722709448639,0.01023,60636.0,60635.0,1.47051273]
[1722709449246,0.01023,60636.0,60635.0,0.78782873]
[1722709449457,0.01023,60636.0,60635.0,0.77382873]
[1722709449668,0.01023,60636.0,60635.0,1.10367073]
[1722709451463,0.01023,60636.0,60635.0,1.41951273]
[1722709451675,0.01023,60636.0,60635.0,1.43351273]
[1722709451888,0.01023,60636.0,60635.0,1.47051273]
[1722709452118,0.01023,60636.0,60635.0,1.77235473]
[1722709452341,0.01023,60636.0,60635.0,1.78535473]
[1722709452553,0.01023,60636.0,60635.0,1.82135473]
[1722709452771,0.01023,60636.0,60635.0,1.99945473]
[1722709453308,0.01023,60636.0,60635.0,2.39533873]
[1722709453851,0.01023,60636.0,60635.0,2.43413462]
[1722709454050,0.01023,60636.0,60635.0,2.10429262]
[1722709454256,0.01023,60636.0,60635.0,2.09029262]
[1722709454435,0.01023,60636.0,60635.0,2.01649673]
[1722709454631,0.01023,60636.0,60635.0,2.03649673]
[1722709454999,0.01023,60636.0,60635.0,2.03049673]
[1722709455177,0.01023,60636.0,60635.0,2.54535029]
[1722709455385,0.01023,60636.0,60635.0,2.44695577]
[1722709456145,0.01023,60636.0,60635.0,2.7911308]
[1722709456345,0.01023,60636.0,60635.0,2.4612888]
[1722709456542,0.01023,60636.0,60635.0,2.46150638]
[1722709456994,0.01023,60636.0,60635.0,2.44750638]
[1722709457401,0.01023,60636.0,60635.0,2.57053858]
[1722709457763,0.01023,60636.0,60635.0,2.58453858]
[1722709457979,0.01023,60636.0,60635.0,2.58653858]
[1722709458201,0.01023,60636.0,60635.0,2.46350638]
[1722709458625,0.01023,60636.0,60635.0,2.561922]
[1722709459251,0.01023,60636.0,60635.0,2.46350638]
[1722709459253,0.01023,60636.0,60635.0,1.91056438]
[1722709459456,0.01023,60636.0,60635.0,1.41355473]
[1722709460066,0.01023,60636.0,60635.0,1.39955473]
[1722709460448,0.01023,60636.0,60635.0,0.68782873]
[1722709460645,0.01023,60636.0,60635.0,0.67382873]
[1722709460849,0.01023,60636.0,60635.0,1.33351273]
[1722709461052,0.01023,60636.0,60635.0,1.34751273]
[1722709461259,0.01023,60636.0,60635.0,1.31951273]
[1722709461655,0.01023,60636.0,60635.0,1.09167073]
[1722709461864,0.01023,60636.0,60635.0,1.08967073]
[1722709462021,0.01023,60636.0,60635.0,1.10367073]
[1722709462217,0.01023,60636.0,60635.0,1.10467073]
[1722709462522,0.01023,60636.0,60635.0,1.42051273]
[1722709462727,0.01023,60636.0,60635.0,1.09067073]
[1722709462930,0.01023,60636.0,60635.0,1.42051273]
[1722709463556,0.01023,60636.0,60635.0,1.41951273]
[1722709463848,0.08383,60636.0,60635.0,0.77982873]
[1722709464050,0.08383,60636.0,60635.0,0.33798673]
[1722709464230,0.08383,60636.0,60635.0,0.18206573]
[1722709464433,0.08383,60636.0,60635.0,0.34698673]
[1722709464634,0.08383,60636.0,60635.0,0.33798673]
[1722709464850,0.08383,60636.0,60635.0,0.67382873]
[1722709465130,0.08383,60636.0,60635.0,0.17306573]
[1722709465131,0.17113,60636.0,60635.0,0.17306573]
[1722709465352,0.17113,60636.0,60635.0,0.18206573]
[1722709466610,0.17113,60636.0,60635.0,0.17406573]
[1722709466977,0.995722,60636.0,60635.0,0.02460649]
[1722709467177,1.335559,60636.0,60635.0,0.02460649]
[1722709467353,1.325559,60636.0,60635.0,0.017]
[1722709467574,0.995722,60636.0,60635.0,0.017]
[1722709467783,0.995722,60636.0,60624.0,0.329897]
[1722709467784,0.16493,60632.0,60624.0,0.329897]
[1722709467982,0.16493,60632.0,60628.0,0.164939]
[1722709468184,0.164928,60633.0,60629.0,0.164936]
[1722709468380,0.164924,60634.0,60630.0,0.164933]
[1722709468583,0.164924,60634.0,60631.0,0.15745924]
[1722709468850,0.17113,60636.0,60631.0,0.15745924]
[1722709468851,0.17113,60636.0,60632.0,0.164928]
[1722709469004,0.17113,60636.0,60633.0,0.15745924]
[1722709469203,0.17113,60636.0,60634.0,0.164923]
[1722709469381,0.164923,60634.0,60633.0,0.16507325]
[1722709469588,0.164923,60634.0,60618.0,0.00157439]
[1722709469589,0.0873,60633.0,60621.0,0.164958]
[1722709469790,0.1609,60624.0,60622.0,0.15745924]
[1722709469994,0.164953,60623.0,60622.0,0.15745924]
[1722709470193,0.1609,60624.0,60622.0,0.15745924]
[1722709470572,0.1609,60624.0,60622.0,0.32241524]
[1722709471021,0.164953,60623.0,60622.0,0.15745924]
[1722709471366,0.1609,60624.0,60622.0,0.15745924]
[1722709471574,0.1619,60624.0,60622.0,0.15745924]
[1722709471778,0.164953,60623.0,60622.0,0.15745924]
[1722709472709,0.1639,60624.0,60622.0,0.15745924]
[1722709472911,0.1639,60624.0,60622.0,0.32241424]
[1722709473314,0.1609,60624.0,60622.0,0.32241424]
[1722709473535,0.1619,60624.0,60622.0,0.32241424]
[1722709473900,0.1609,60624.0,60622.0,0.32241424]
[1722709474094,0.1619,60624.0,60623.0,0.164953]
[1722709474356,0.1609,60624.0,60623.0,0.164953]
[1722709474680,0.1619,60624.0,60623.0,0.164953]
[1722709475117,0.1619,60624.0,60622.0,0.15745924]
[1722709476939,0.1609,60624.0,60622.0,0.32241524]
[1722709477135,0.1609,60624.0,60623.0,0.49486]
[1722709477339,0.0873,60624.0,60623.0,0.98222624]
[1722709477568,0.01023,60636.0,60627.0,0.329886]
[1722709477569,0.0873,60630.0,60627.0,0.329886]
[1722709477773,0.0873,60630.0,60621.0,0.07875194]
[1722709477774,0.0873,60630.0,60629.0,0.824687]
[1722709477945,0.01023,60636.0,60635.0,0.494763]
[1722709478165,0.01023,60636.0,60635.0,0.65222224]
[1722709478525,0.01023,60636.0,60635.0,0.32238024]
[1722709478741,0.504985,60636.0,60631.0,0.164931]
[1722709478943,0.504985,60636.0,60618.0,0.0735]
[1722709478944,0.175149,60636.0,60623.0,0.07875194]
[1722709479300,0.01023,60636.0,60635.0,0.494763]
[1722709479511,0.01023,60636.0,60635.0,0.98206424]
[1722709480136,0.01023,60636.0,60635.0,1.31190624]
[1722709480873,0.01023,60636.0,60635.0,1.31990624]
[1722709481080,0.01023,60636.0,60635.0,1.31590624]
[1722709481274,0.01023,60636.0,60635.0,1.31190624]
[1722709481597,0.01023,60636.0,60635.0,1.32690624]
[1722709482385,0.01023,60636.0,60635.0,0.99706424]
[1722709482577,0.01023,60636.0,60635.0,0.33738024]
[1722709482779,0.01023,60636.0,60635.0,0.17245924]
[1722709482934,0.01023,60636.0,60635.0,0.33738024]
[1722709483460,0.01023,60636.0,60635.0,0.66722224]
[1722709483888,0.01023,60636.0,60635.0,0.99706424]
[1722709484264,0.01023,60636.0,60635.0,0.66722224]
[1722709484451,0.65033694,60636.0,60635.0,0.015]
[1722709484657,1.06747394,60636.0,60635.0,0.015]
[1722709484863,1.39731094,60636.0,60635.0,0.015]
[1722709485272,0.658885,60636.0,60635.0,0.015]
[1722709485687,0.16413,60636.0,60635.0,0.015]
[1722709485870,0.16413,60636.0,60635.0,0.01560649]
[1722709486287,0.658885,60636.0,60635.0,0.01660649]
[1722709486485,0.329048,60636.0,60635.0,0.001]
[1722709486781,0.16413,60636.0,60635.0,0.83421149]
[1722709486981,0.16413,60636.0,60635.0,0.496763]
[1722709487211,0.16413,60636.0,60635.0,0.00960649]
[1722709487413,0.329048,60636.0,60635.0,0.00960649]
[1722709487728,0.16413,60636.0,60635.0,0.17452749]
[1722709487927,0.16413,60636.0,60635.0,0.00960649]
[1722709488305,0.16413,60636.0,60635.0,0.17452749]
[1722709488465,0.16413,60636.0,60635.0,0.99167073]
[1722709488876,0.09753,60636.0,60635.0,0.99167073]
[1722709489075,0.01023,60636.0,60635.0,1.32151273]
[1722709490136,0.01023,60636.0,60635.0,1.95955473]
[1722709490338,0.01023,60636.0,60635.0,2.1615827]
[1722709490767,0.01023,60636.0,60635.0,2.36714867]
[1722709491011,0.01007215,60636.0,60635.0,2.38014867]
[1722709491429,0.01007215,60636.0,60635.0,2.37414867]
[1722709491557,0.01007215,60636.0,60635.0,2.1655163]
[1722709491774,0.01007215,60636.0,60635.0,2.11078043]
[1722709491967,0.01007215,60636.0,60635.0,2.03202849]
[1722709492188,0.01007215,60636.0,60635.0,2.46044063]
[1722709492393,0.01007215,60636.0,60635.0,2.19907569]
[1722709492789,0.01007215,60636.0,60635.0,2.15059863]
[1722709493116,0.01007215,60636.0,60635.0,2.48044063]
[1722709493324,0.01007215,60636.0,60635.0,2.38187049]
[1722709493677,0.01007215,60636.0,60635.0,2.57275077]
[1722709493899,0.01007215,60636.0,60635.0,2.54808641]
[1722709494440,0.01007215,60636.0,60635.0,2.44954296]
[1722709494642,0.01007215,60636.0,60635.0,2.08970096]
[1722709494812,0.01007215,60636.0,60635.0,2.17360267]
[1722709495020,0.01007215,60636.0,60635.0,2.16360267]
[1722709495223,0.01007215,60636.0,60635.0,2.42954296]
[1722709495422,0.01023,60660.0,60635.0,2.42954296]
[1722709495423,0.01023,60660.0,60636.0,0.0668]